[Event "Titled Tuesday Blitz August 31 2021"]
[White "FGHSMN"]
[Black "Ljukin, Sergei"]
[BlackFideId "14102200"]
[WhiteElo "2654"]
[BlackElo "2309"]
[Result "1/2-1/2"]
[Round "11"]
[TimeControl "180+1"]
[Date "2021.08.31"]
[WhiteClock "0:00:13"]
[BlackClock "0:00:04"]

1. b3 {[%clk 0:03:00]}  e5 {[%clk 0:02:58]} 2. Bb2 {[%clk 0:03:01]}  Nc6 {[%clk 0:02:59]} 3. c4 {[%clk 0:03:00]}  Nf6 {[%clk 0:02:58]} 4. e3 {[%clk 0:03:00]}  d5 {[%clk 0:02:58]} 5. cxd5 {[%clk 0:02:59]}  Nxd5 {[%clk 0:02:58]} 6. a3 {[%clk 0:03:00]}  Be6 {[%clk 0:02:55]} 7. Qc2 {[%clk 0:02:56]}  Qd7 {[%clk 0:02:51]} 8. Nf3 {[%clk 0:02:55]}  f6 {[%clk 0:02:44]} 9. d3 {[%clk 0:02:55]}  O-O-O {[%clk 0:02:40]} 10. Nbd2 {[%clk 0:02:54]}  g5 {[%clk 0:02:39]} 11. Ne4 {[%clk 0:02:53]}  g4 {[%clk 0:02:32]} 12. Nfd2 {[%clk 0:02:52]}  f5 {[%clk 0:02:31]} 13. Nc5 {[%clk 0:02:51]}  Bxc5 {[%clk 0:02:30]} 14. Qxc5 {[%clk 0:02:52]}  h5 {[%clk 0:02:20]} 15. Nc4 {[%clk 0:02:50]}  Qg7 {[%clk 0:01:35]} 16. b4 {[%clk 0:02:44]}  a6 {[%clk 0:01:35]} 17. Rc1 {[%clk 0:02:32]}  Nde7 {[%clk 0:01:31]} 18. Nxe5 {[%clk 0:02:07]}  Rd5 {[%clk 0:01:30]} 19. Nxc6 {[%clk 0:02:05]}  Rxc5 {[%clk 0:01:29]} 20. Na7+ {[%clk 0:02:05]}  Kb8 {[%clk 0:01:23]} 21. Bxg7 {[%clk 0:02:05]}  Rxc1+ {[%clk 0:01:22]} 22. Kd2 {[%clk 0:02:05]}  Rg8 {[%clk 0:01:21]} 23. Bd4 {[%clk 0:01:50]}  Rb1 {[%clk 0:01:05]} 24. Kc2 {[%clk 0:01:48]}  Rb3 {[%clk 0:01:03]} 25. h3 {[%clk 0:01:38]}  g3 {[%clk 0:00:57]} 26. fxg3 {[%clk 0:01:32]}  Rxa3 {[%clk 0:00:57]} 27. g4 {[%clk 0:01:29]}  fxg4 {[%clk 0:00:57]} 28. hxg4 {[%clk 0:01:30]}  Bxg4 {[%clk 0:00:57]} 29. Kb2 {[%clk 0:01:26]}  Ra4 {[%clk 0:00:49]} 30. Kb3 {[%clk 0:01:26]}  b5 {[%clk 0:00:49]} 31. Bc5 {[%clk 0:01:21]}  Be6+ {[%clk 0:00:46]} 32. Kb2 {[%clk 0:01:12]}  Nd5 {[%clk 0:00:34]} 33. Rxh5 {[%clk 0:01:05]}  Nxb4 {[%clk 0:00:33]} 34. Rh6 {[%clk 0:00:49]}  Bd5 {[%clk 0:00:27]} 35. e4 {[%clk 0:00:48]}  Bb7 {[%clk 0:00:26]} 36. Kb3 {[%clk 0:00:40]}  a5 {[%clk 0:00:20]} 37. Nxb5 {[%clk 0:00:39]}  Ra1 {[%clk 0:00:20]} 38. Nc3 {[%clk 0:00:33]}  Rxf1 {[%clk 0:00:18]} 39. d4 {[%clk 0:00:29]}  Rxg2 {[%clk 0:00:17]} 40. d5 {[%clk 0:00:28]}  Rg3 {[%clk 0:00:16]} 41. d6 {[%clk 0:00:23]}  cxd6 {[%clk 0:00:16]} 42. Bxd6+ {[%clk 0:00:22]}  Ka7 {[%clk 0:00:15]} 43. Bxg3 {[%clk 0:00:22]}  Rf3 {[%clk 0:00:13]} 44. Be5 {[%clk 0:00:22]}  Bxe4 {[%clk 0:00:13]} 45. Bd4+ {[%clk 0:00:22]}  Kb7 {[%clk 0:00:12]} 46. Rb6+ {[%clk 0:00:22]}  Kc7 {[%clk 0:00:12]} 47. Rb5 {[%clk 0:00:18]}  Nc6 {[%clk 0:00:11]} 48. Bb6+ {[%clk 0:00:16]}  Kd6 {[%clk 0:00:10]} 49. Bc5+ {[%clk 0:00:16]}  Kc7 {[%clk 0:00:09]} 50. Bb6+ {[%clk 0:00:16]}  Kb7 {[%clk 0:00:09]} 51. Bxa5+ {[%clk 0:00:15]}  Ka6 {[%clk 0:00:08]} 52. Ka4 {[%clk 0:00:12]}  Nd4 {[%clk 0:00:06]} 53. Nxe4 {[%clk 0:00:11]}  Nxb5 {[%clk 0:00:05]} 54. Nc5+ {[%clk 0:00:12]}  Ka7 {[%clk 0:00:04]} 55. Kxb5 {[%clk 0:00:12]}  Rf5 {[%clk 0:00:04]} 56. Bb6+ {[%clk 0:00:12]}  Ka8 {[%clk 0:00:03]} 57. Kc6 {[%clk 0:00:13]}  Rxc5+ {[%clk 0:00:04]} 58. Kxc5 {[%clk 0:00:13]} 1/2-1/2


[Site "https://www.chess.com"]

[Event "Titled Tuesday Blitz August 31 2021"]
[White "Fier, Alexandr"]
[Black "Csonka, Balazs"]
[WhiteFideId "2107139"]
[BlackFideId "742910"]
[WhiteElo "2569"]
[BlackElo "2404"]
[Result "1-0"]
[Round "11"]
[TimeControl "180+1"]
[Date "2021.08.31"]
[WhiteClock "0:01:41"]
[BlackClock "0:00:02"]

1. d4 {[%clk 0:03:00]}  d5 {[%clk 0:02:57]} 2. c4 {[%clk 0:03:00]}  e6 {[%clk 0:02:57]} 3. Nc3 {[%clk 0:02:59]}  a6 {[%clk 0:02:55]} 4. c5 {[%clk 0:02:57]}  b6 {[%clk 0:02:53]} 5. cxb6 {[%clk 0:02:57]}  cxb6 {[%clk 0:02:52]} 6. Bf4 {[%clk 0:02:57]}  Bd6 {[%clk 0:02:52]} 7. Bxd6 {[%clk 0:02:57]}  Qxd6 {[%clk 0:02:53]} 8. e3 {[%clk 0:02:57]}  Ne7 {[%clk 0:02:44]} 9. Bd3 {[%clk 0:02:57]}  Bb7 {[%clk 0:02:43]} 10. f4 {[%clk 0:02:56]}  Nd7 {[%clk 0:02:41]} 11. Nf3 {[%clk 0:02:57]}  O-O {[%clk 0:02:37]} 12. O-O {[%clk 0:02:55]}  Nf6 {[%clk 0:02:31]} 13. Ne5 {[%clk 0:02:54]}  Ne4 {[%clk 0:02:23]} 14. Nxe4 {[%clk 0:02:52]}  dxe4 {[%clk 0:02:24]} 15. Bc4 {[%clk 0:02:47]}  f6 {[%clk 0:02:04]} 16. Ng4 {[%clk 0:02:46]}  Bd5 {[%clk 0:02:02]} 17. Bb3 {[%clk 0:02:35]}  Rac8 {[%clk 0:01:58]} 18. Nf2 {[%clk 0:02:34]}  f5 {[%clk 0:01:51]} 19. Qd2 {[%clk 0:02:22]}  Bxb3 {[%clk 0:01:44]} 20. axb3 {[%clk 0:02:22]}  a5 {[%clk 0:01:45]} 21. Rfc1 {[%clk 0:02:20]}  Nd5 {[%clk 0:01:19]} 22. Nd1 {[%clk 0:02:19]}  Qb4 {[%clk 0:01:07]} 23. Qxb4 {[%clk 0:02:19]}  Nxb4 {[%clk 0:01:08]} 24. Kf1 {[%clk 0:02:12]}  Kf7 {[%clk 0:00:58]} 25. Ke2 {[%clk 0:02:12]}  Ke7 {[%clk 0:00:55]} 26. Kd2 {[%clk 0:02:13]}  Kd7 {[%clk 0:00:46]} 27. Rc3 {[%clk 0:02:13]}  Nd5 {[%clk 0:00:45]} 28. Rc4 {[%clk 0:02:13]}  Rc7 {[%clk 0:00:41]} 29. g4 {[%clk 0:02:04]}  Rfc8 {[%clk 0:00:31]} 30. gxf5 {[%clk 0:02:04]}  exf5 {[%clk 0:00:31]} 31. Rac1 {[%clk 0:02:05]}  b5 {[%clk 0:00:27]} 32. Rxc7+ {[%clk 0:02:04]}  Rxc7 {[%clk 0:00:28]} 33. Ra1 {[%clk 0:02:04]}  Ra7 {[%clk 0:00:25]} 34. Nf2 {[%clk 0:02:04]}  a4 {[%clk 0:00:20]} 35. Nh3 {[%clk 0:02:01]}  Nb4 {[%clk 0:00:16]} 36. Ng5 {[%clk 0:02:00]}  Rc7 {[%clk 0:00:13]} 37. bxa4 {[%clk 0:01:58]}  Rc2+ {[%clk 0:00:12]} 38. Kd1 {[%clk 0:01:58]}  Rxh2 {[%clk 0:00:12]} 39. Ra3 {[%clk 0:01:58]}  bxa4 {[%clk 0:00:09]} 40. Rxa4 {[%clk 0:01:58]}  Nd3 {[%clk 0:00:09]} 41. Ra7+ {[%clk 0:01:58]}  Kc6 {[%clk 0:00:09]} 42. Rxg7 {[%clk 0:01:56]}  Nxb2+ {[%clk 0:00:08]} 43. Ke1 {[%clk 0:01:55]}  Nc4 {[%clk 0:00:08]} 44. Nf7 {[%clk 0:01:41]}  Nxe3 {[%clk 0:00:06]} 45. Ne5+ {[%clk 0:01:42]}  Kb5 {[%clk 0:00:03]} 46. Rc7 {[%clk 0:01:42]}  Ng2+ {[%clk 0:00:02]} 47. Kf2 {[%clk 0:01:41]} 1-0


[Site "https://www.chess.com"]

[Event "Titled Tuesday Blitz August 31 2021"]
[White "Filippova, Margarita"]
[Black "Jakubowski, Krzysztof"]
[WhiteFideId "34199680"]
[BlackFideId "1112848"]
[WhiteElo "1829"]
[BlackElo "2414"]
[Result "0-1"]
[Round "11"]
[TimeControl "180+1"]
[Date "2021.08.31"]
[WhiteClock "0:01:24"]
[BlackClock "0:01:43"]

1. Nf3 {[%clk 0:03:00]}  Nf6 {[%clk 0:02:58]} 2. d4 {[%clk 0:03:01]}  e6 {[%clk 0:02:56]} 3. c4 {[%clk 0:03:01]}  Bb4+ {[%clk 0:02:54]} 4. Nc3 {[%clk 0:03:01]}  b6 {[%clk 0:02:53]} 5. Bg5 {[%clk 0:02:57]}  h6 {[%clk 0:02:52]} 6. Bh4 {[%clk 0:02:56]}  Bb7 {[%clk 0:02:51]} 7. e3 {[%clk 0:02:55]}  g5 {[%clk 0:02:50]} 8. Bg3 {[%clk 0:02:54]}  Ne4 {[%clk 0:02:48]} 9. Be5 {[%clk 0:02:53]}  f6 {[%clk 0:02:39]} 10. Bg3 {[%clk 0:02:52]}  Nxc3 {[%clk 0:02:36]} 11. bxc3 {[%clk 0:02:50]}  Bxf3 {[%clk 0:02:31]} 12. Qb3 {[%clk 0:02:41]}  Bxc3+ {[%clk 0:02:19]} 13. Qxc3 {[%clk 0:02:39]}  Bb7 {[%clk 0:02:19]} 14. Rd1 {[%clk 0:02:36]}  Qe7 {[%clk 0:02:12]} 15. Bd3 {[%clk 0:02:35]}  f5 {[%clk 0:02:10]} 16. Be5 {[%clk 0:02:34]}  Rg8 {[%clk 0:02:07]} 17. h3 {[%clk 0:02:27]}  d6 {[%clk 0:02:04]} 18. Bg3 {[%clk 0:02:27]}  Bxg2 {[%clk 0:02:04]} 19. Rh2 {[%clk 0:02:26]}  Bf3 {[%clk 0:02:04]} 20. Rc1 {[%clk 0:02:22]}  Nd7 {[%clk 0:02:03]} 21. Bc2 {[%clk 0:02:13]}  Qf6 {[%clk 0:01:57]} 22. Qd2 {[%clk 0:02:01]}  e5 {[%clk 0:01:50]} 23. dxe5 {[%clk 0:01:55]}  dxe5 {[%clk 0:01:51]} 24. Ba4 {[%clk 0:01:54]}  O-O-O {[%clk 0:01:50]} 25. h4 {[%clk 0:01:34]}  Nc5 {[%clk 0:01:47]} 26. Qc2 {[%clk 0:01:30]}  Nd3+ {[%clk 0:01:46]} 27. Kf1 {[%clk 0:01:29]}  Nxc1 {[%clk 0:01:46]} 28. Qxc1 {[%clk 0:01:28]}  f4 {[%clk 0:01:45]} 29. exf4 {[%clk 0:01:26]}  gxf4 {[%clk 0:01:44]} 30. Qc3 {[%clk 0:01:24]}  fxg3 {[%clk 0:01:43]} 0-1


[Site "https://www.chess.com"]

[Event "Titled Tuesday Blitz August 31 2021"]
[White "Gallegos Diaz, Carlos Alberto"]
[Black "Kozak, Antoni"]
[WhiteFideId "3900886"]
[BlackFideId "21832030"]
[WhiteElo "2362"]
[BlackElo "2289"]
[Result "0-1"]
[Round "11"]
[TimeControl "180+1"]
[Date "2021.08.31"]
[WhiteClock "0:00:01"]
[BlackClock "0:00:04"]

1. e4 {[%clk 0:03:00]}  c5 {[%clk 0:02:59]} 2. d3 {[%clk 0:03:01]}  Nc6 {[%clk 0:02:56]} 3. Nd2 {[%clk 0:03:02]}  g6 {[%clk 0:02:56]} 4. Ngf3 {[%clk 0:03:02]}  Bg7 {[%clk 0:02:56]} 5. Be2 {[%clk 0:03:02]}  e6 {[%clk 0:02:57]} 6. O-O {[%clk 0:03:03]}  Nge7 {[%clk 0:02:48]} 7. c3 {[%clk 0:03:03]}  O-O {[%clk 0:02:45]} 8. Re1 {[%clk 0:03:03]}  b5 {[%clk 0:02:38]} 9. Nb3 {[%clk 0:02:57]}  d6 {[%clk 0:02:37]} 10. d4 {[%clk 0:02:56]}  cxd4 {[%clk 0:02:31]} 11. cxd4 {[%clk 0:02:53]}  a6 {[%clk 0:02:28]} 12. Bg5 {[%clk 0:02:21]}  h6 {[%clk 0:02:26]} 13. Be3 {[%clk 0:02:18]}  Bb7 {[%clk 0:02:06]} 14. Qd2 {[%clk 0:02:12]}  Kh7 {[%clk 0:02:04]} 15. Rac1 {[%clk 0:01:53]}  Rc8 {[%clk 0:01:47]} 16. d5 {[%clk 0:01:43]}  exd5 {[%clk 0:01:45]} 17. exd5 {[%clk 0:01:43]}  Ne5 {[%clk 0:01:34]} 18. Nxe5 {[%clk 0:01:42]}  dxe5 {[%clk 0:01:34]} 19. d6 {[%clk 0:01:21]}  Rxc1 {[%clk 0:01:29]} 20. Rxc1 {[%clk 0:01:17]}  Nf5 {[%clk 0:01:29]} 21. Bc5 {[%clk 0:01:06]}  Qd7 {[%clk 0:01:23]} 22. Bg4 {[%clk 0:00:57]}  h5 {[%clk 0:01:18]} 23. Bh3 {[%clk 0:00:56]}  Bh6 {[%clk 0:01:17]} 24. Be3 {[%clk 0:00:33]}  Bxe3 {[%clk 0:01:12]} 25. Qxe3 {[%clk 0:00:32]}  Qxd6 {[%clk 0:01:08]} 26. Bxf5 {[%clk 0:00:32]}  gxf5 {[%clk 0:01:09]} 27. Qh3 {[%clk 0:00:19]}  Qg6 {[%clk 0:01:06]} 28. Rc7 {[%clk 0:00:19]}  Rd8 {[%clk 0:01:02]} 29. f3 {[%clk 0:00:19]}  Qb6+ {[%clk 0:00:55]} 30. Rc5 {[%clk 0:00:15]}  Qg6 {[%clk 0:00:15]} 31. Rxe5 {[%clk 0:00:14]}  Rd1+ {[%clk 0:00:15]} 32. Kf2 {[%clk 0:00:14]}  Rb1 {[%clk 0:00:16]} 33. Qxf5 {[%clk 0:00:13]}  Rxb2+ {[%clk 0:00:16]} 34. Ke3 {[%clk 0:00:13]}  Rxg2 {[%clk 0:00:15]} 35. Qxh5+ {[%clk 0:00:12]}  Kg7 {[%clk 0:00:15]} 36. Qxg6+ {[%clk 0:00:11]}  Kxg6 {[%clk 0:00:15]} 37. Re7 {[%clk 0:00:12]}  Bd5 {[%clk 0:00:14]} 38. Nc5 {[%clk 0:00:11]}  Rxa2 {[%clk 0:00:13]} 39. h4 {[%clk 0:00:11]}  Bc4 {[%clk 0:00:13]} 40. Kf4 {[%clk 0:00:11]}  Re2 {[%clk 0:00:13]} 41. Ne4 {[%clk 0:00:10]}  Kg7 {[%clk 0:00:12]} 42. h5 {[%clk 0:00:10]}  a5 {[%clk 0:00:12]} 43. Ra7 {[%clk 0:00:10]}  a4 {[%clk 0:00:13]} 44. Nd6 {[%clk 0:00:10]}  Rh2 {[%clk 0:00:12]} 45. Nf5+ {[%clk 0:00:10]}  Kf6 {[%clk 0:00:12]} 46. Ra6+ {[%clk 0:00:10]}  Be6 {[%clk 0:00:12]} 47. h6 {[%clk 0:00:10]}  Rh5 {[%clk 0:00:10]} 48. Ng3 {[%clk 0:00:07]}  Rxh6 {[%clk 0:00:10]} 49. Ne4+ {[%clk 0:00:08]}  Kg7 {[%clk 0:00:10]} 50. Nc3 {[%clk 0:00:07]}  Rh4+ {[%clk 0:00:10]} 51. Kg3 {[%clk 0:00:06]}  Rb4 {[%clk 0:00:10]} 52. Ra5 {[%clk 0:00:04]}  Bc4 {[%clk 0:00:10]} 53. Ne4 {[%clk 0:00:04]}  Rb3 {[%clk 0:00:08]} 54. Kf4 {[%clk 0:00:04]}  a3 {[%clk 0:00:08]} 55. Ke5 {[%clk 0:00:03]}  a2 {[%clk 0:00:07]} 56. Rxa2 {[%clk 0:00:01]}  Rxf3 {[%clk 0:00:08]} 57. Rg2+ {[%clk 0:00:02]}  Kf8 {[%clk 0:00:07]} 58. Nd6 {[%clk 0:00:03]}  Be6 {[%clk 0:00:05]} 59. Kd4 {[%clk 0:00:01]}  b4 {[%clk 0:00:04]} 60. Kc5 {[%clk 0:00:01]}  b3 {[%clk 0:00:04]} 0-1


[Site "https://www.chess.com"]

[Event "Titled Tuesday Blitz August 31 2021"]
[White "Girinath, P.D.S."]
[Black "Isajevsky, Anton"]
[WhiteFideId "5000572"]
[BlackFideId "4142500"]
[WhiteElo "2333"]
[BlackElo "2510"]
[Result "1-0"]
[Round "11"]
[TimeControl "180+1"]
[Date "2021.08.31"]
[WhiteClock "0:00:05"]
[BlackClock "0:00:03"]

1. e4 {[%clk 0:03:00]}  c5 {[%clk 0:02:59]} 2. Nf3 {[%clk 0:03:00]}  Qb6 {[%clk 0:02:59]} 3. c3 {[%clk 0:02:43]}  Nf6 {[%clk 0:02:52]} 4. Bd3 {[%clk 0:02:38]}  Nc6 {[%clk 0:02:49]} 5. Bc2 {[%clk 0:02:38]}  d6 {[%clk 0:02:38]} 6. h3 {[%clk 0:02:36]}  g6 {[%clk 0:02:30]} 7. d4 {[%clk 0:02:32]}  Bg7 {[%clk 0:02:28]} 8. d5 {[%clk 0:02:31]}  Nb8 {[%clk 0:02:20]} 9. O-O {[%clk 0:02:21]}  O-O {[%clk 0:02:20]} 10. c4 {[%clk 0:02:21]}  e6 {[%clk 0:02:10]} 11. Nc3 {[%clk 0:02:17]}  exd5 {[%clk 0:02:09]} 12. exd5 {[%clk 0:02:16]}  Na6 {[%clk 0:01:42]} 13. Re1 {[%clk 0:02:10]}  Bd7 {[%clk 0:01:37]} 14. a3 {[%clk 0:02:06]}  Rae8 {[%clk 0:01:35]} 15. Rb1 {[%clk 0:01:54]}  Rxe1+ {[%clk 0:01:31]} 16. Qxe1 {[%clk 0:01:55]}  Re8 {[%clk 0:01:31]} 17. Qd1 {[%clk 0:01:51]}  Re7 {[%clk 0:00:44]} 18. Be3 {[%clk 0:01:44]}  Qd8 {[%clk 0:00:36]} 19. Qd2 {[%clk 0:01:43]}  Qf8 {[%clk 0:00:33]} 20. b4 {[%clk 0:01:38]}  b6 {[%clk 0:00:31]} 21. b5 {[%clk 0:01:34]}  Nb8 {[%clk 0:00:28]} 22. Bf4 {[%clk 0:01:28]}  Re8 {[%clk 0:00:27]} 23. Re1 {[%clk 0:01:21]}  Nh5 {[%clk 0:00:22]} 24. Rxe8 {[%clk 0:01:18]}  Bxe8 {[%clk 0:00:20]} 25. Be3 {[%clk 0:01:15]}  Qe7 {[%clk 0:00:20]} 26. g4 {[%clk 0:01:04]}  Nf6 {[%clk 0:00:19]} 27. Bg5 {[%clk 0:01:04]}  Qf8 {[%clk 0:00:15]} 28. a4 {[%clk 0:00:52]}  Nbd7 {[%clk 0:00:14]} 29. Qe3 {[%clk 0:00:47]}  h6 {[%clk 0:00:13]} 30. Bf4 {[%clk 0:00:47]}  Nh7 {[%clk 0:00:12]} 31. Ne4 {[%clk 0:00:44]}  Ne5 {[%clk 0:00:04]} 32. Nxd6 {[%clk 0:00:34]}  Qxd6 {[%clk 0:00:04]} 33. Bxe5 {[%clk 0:00:33]}  Qe7 {[%clk 0:00:04]} 34. d6 {[%clk 0:00:28]}  Qd7 {[%clk 0:00:03]} 35. Bxg7 {[%clk 0:00:27]}  Kxg7 {[%clk 0:00:03]} 36. Qf4 {[%clk 0:00:25]}  Qe6 {[%clk 0:00:03]} 37. Be4 {[%clk 0:00:20]}  Bd7 {[%clk 0:00:02]} 38. Bd5 {[%clk 0:00:20]}  Qf6 {[%clk 0:00:03]} 39. Qe5 {[%clk 0:00:17]}  Ng5 {[%clk 0:00:02]} 40. Qxf6+ {[%clk 0:00:16]}  Kxf6 {[%clk 0:00:03]} 41. Kg2 {[%clk 0:00:15]}  Nxf3 {[%clk 0:00:02]} 42. Kxf3 {[%clk 0:00:16]}  Ke5 {[%clk 0:00:02]} 43. Bxf7 {[%clk 0:00:15]}  g5 {[%clk 0:00:02]} 44. Ke3 {[%clk 0:00:11]}  Kxd6 {[%clk 0:00:02]} 45. f4 {[%clk 0:00:11]}  gxf4+ {[%clk 0:00:02]} 46. Kxf4 {[%clk 0:00:12]}  Ke7 {[%clk 0:00:02]} 47. Bd5 {[%clk 0:00:11]}  Kf6 {[%clk 0:00:03]} 48. h4 {[%clk 0:00:12]}  Be8 {[%clk 0:00:03]} 49. g5+ {[%clk 0:00:10]}  hxg5+ {[%clk 0:00:04]} 50. hxg5+ {[%clk 0:00:11]}  Ke7 {[%clk 0:00:04]} 51. Ke5 {[%clk 0:00:10]}  Bh5 {[%clk 0:00:04]} 52. Kf5 {[%clk 0:00:05]}  Bd1 {[%clk 0:00:04]} 53. g6 {[%clk 0:00:05]}  Bc2+ {[%clk 0:00:03]} 54. Kg5 {[%clk 0:00:04]}  Kf8 {[%clk 0:00:03]} 55. Kf6 {[%clk 0:00:05]} 1-0


[Site "https://www.chess.com"]

[Event "Titled Tuesday Blitz August 31 2021"]
[White "Goltsev, Dmitry"]
[Black "Khusnutdinov, Rustam"]
[WhiteFideId "24176710"]
[BlackFideId "13701703"]
[WhiteElo "2369"]
[BlackElo "2571"]
[Result "1/2-1/2"]
[Round "11"]
[TimeControl "180+1"]
[Date "2021.08.31"]
[WhiteClock "0:01:20"]
[BlackClock "0:00:21"]

1. e4 {[%clk 0:02:59]}  e6 {[%clk 0:03:00]} 2. d4 {[%clk 0:02:58]}  d5 {[%clk 0:03:00]} 3. exd5 {[%clk 0:02:58]}  exd5 {[%clk 0:03:01]} 4. Nf3 {[%clk 0:02:59]}  Nc6 {[%clk 0:03:01]} 5. Bd3 {[%clk 0:02:59]}  Bd6 {[%clk 0:03:01]} 6. O-O {[%clk 0:02:59]}  Nge7 {[%clk 0:03:01]} 7. h3 {[%clk 0:02:59]}  Bf5 {[%clk 0:03:00]} 8. Re1 {[%clk 0:02:59]}  Qd7 {[%clk 0:02:59]} 9. c3 {[%clk 0:02:59]}  f6 {[%clk 0:02:53]} 10. b4 {[%clk 0:02:55]}  a6 {[%clk 0:02:49]} 11. a4 {[%clk 0:02:55]}  O-O {[%clk 0:02:49]} 12. Na3 {[%clk 0:02:54]}  Rfe8 {[%clk 0:02:43]} 13. Nc2 {[%clk 0:02:52]}  Bxd3 {[%clk 0:02:43]} 14. Qxd3 {[%clk 0:02:53]}  Qf5 {[%clk 0:02:44]} 15. Qxf5 {[%clk 0:02:52]}  Nxf5 {[%clk 0:02:44]} 16. Bd2 {[%clk 0:02:52]}  h5 {[%clk 0:02:43]} 17. g4 {[%clk 0:02:51]}  hxg4 {[%clk 0:02:42]} 18. hxg4 {[%clk 0:02:52]}  Nfe7 {[%clk 0:02:43]} 19. Kg2 {[%clk 0:02:50]}  Ng6 {[%clk 0:02:42]} 20. Rxe8+ {[%clk 0:02:46]}  Rxe8 {[%clk 0:02:41]} 21. Re1 {[%clk 0:02:47]}  Nce7 {[%clk 0:02:29]} 22. Na1 {[%clk 0:02:43]}  Kf7 {[%clk 0:02:28]} 23. Nb3 {[%clk 0:02:43]}  b6 {[%clk 0:02:13]} 24. a5 {[%clk 0:02:41]}  Nc6 {[%clk 0:02:13]} 25. axb6 {[%clk 0:02:36]}  Rxe1 {[%clk 0:02:10]} 26. Nxe1 {[%clk 0:02:37]}  cxb6 {[%clk 0:02:10]} 27. Nd3 {[%clk 0:02:35]}  Nge7 {[%clk 0:02:06]} 28. f4 {[%clk 0:02:30]}  Nc8 {[%clk 0:02:02]} 29. Kf3 {[%clk 0:02:29]}  g6 {[%clk 0:01:59]} 30. f5 {[%clk 0:02:28]}  g5 {[%clk 0:01:57]} 31. Ne1 {[%clk 0:02:21]}  a5 {[%clk 0:01:57]} 32. bxa5 {[%clk 0:02:18]}  bxa5 {[%clk 0:01:57]} 33. Nc2 {[%clk 0:02:14]}  Nb6 {[%clk 0:01:56]} 34. Bc1 {[%clk 0:02:12]}  a4 {[%clk 0:01:53]} 35. Nd2 {[%clk 0:02:09]}  Na5 {[%clk 0:01:47]} 36. Ke2 {[%clk 0:02:08]}  Bf4 {[%clk 0:01:45]} 37. Ba3 {[%clk 0:02:02]}  Bxd2 {[%clk 0:01:42]} 38. Kxd2 {[%clk 0:02:03]}  Nbc4+ {[%clk 0:01:34]} 39. Kc1 {[%clk 0:01:58]}  Nb3+ {[%clk 0:01:33]} 40. Kd1 {[%clk 0:01:53]}  Nbd2 {[%clk 0:01:31]} 41. Bb4 {[%clk 0:01:48]}  Ne4 {[%clk 0:01:30]} 42. Ke2 {[%clk 0:01:39]}  Ke8 {[%clk 0:01:28]} 43. Ne3 {[%clk 0:01:31]}  Nxe3 {[%clk 0:01:26]} 44. Kxe3 {[%clk 0:01:32]}  Kd7 {[%clk 0:01:17]} 45. c4 {[%clk 0:01:25]}  Kc6 {[%clk 0:01:17]} 46. Be7 {[%clk 0:01:24]}  Kd7 {[%clk 0:01:08]} 47. Bb4 {[%clk 0:01:23]}  Kc6 {[%clk 0:00:29]} 48. Be7 {[%clk 0:01:20]}  Kd7 {[%clk 0:00:21]} 49. Bb4 {[%clk 0:01:20]} 1/2-1/2


[Site "https://www.chess.com"]

[Event "Titled Tuesday Blitz August 31 2021"]
[White "Hansen, Sune Berg"]
[Black "Piesik, Piotr"]
[WhiteFideId "1400266"]
[BlackFideId "1136194"]
[WhiteElo "2717"]
[BlackElo "2395"]
[Result "0-1"]
[Round "11"]
[TimeControl "180+1"]
[Date "2021.08.31"]
[WhiteClock "0:00:57"]
[BlackClock "0:01:42"]

1. e4 {[%clk 0:03:00]}  g6 {[%clk 0:02:58]} 2. d4 {[%clk 0:03:01]}  Bg7 {[%clk 0:02:57]} 3. Nf3 {[%clk 0:03:01]}  c6 {[%clk 0:02:57]} 4. h3 {[%clk 0:03:01]}  d6 {[%clk 0:02:56]} 5. Bd3 {[%clk 0:02:58]}  Nf6 {[%clk 0:02:56]} 6. O-O {[%clk 0:02:57]}  O-O {[%clk 0:02:56]} 7. Re1 {[%clk 0:02:58]}  Nbd7 {[%clk 0:02:56]} 8. e5 {[%clk 0:02:57]}  dxe5 {[%clk 0:02:55]} 9. dxe5 {[%clk 0:02:56]}  Ne8 {[%clk 0:02:54]} 10. Qe2 {[%clk 0:02:50]}  Nc5 {[%clk 0:02:53]} 11. Bc4 {[%clk 0:02:47]}  Be6 {[%clk 0:02:50]} 12. Be3 {[%clk 0:02:43]}  Bxc4 {[%clk 0:02:49]} 13. Qxc4 {[%clk 0:02:43]}  Ne6 {[%clk 0:02:49]} 14. Nbd2 {[%clk 0:02:32]}  N8c7 {[%clk 0:02:49]} 15. Qb4 {[%clk 0:02:28]}  b6 {[%clk 0:02:47]} 16. Qh4 {[%clk 0:02:25]}  Nd5 {[%clk 0:02:46]} 17. Bh6 {[%clk 0:02:24]}  Qc7 {[%clk 0:02:43]} 18. Rad1 {[%clk 0:02:22]}  Rfd8 {[%clk 0:02:42]} 19. Bxg7 {[%clk 0:02:19]}  Kxg7 {[%clk 0:02:42]} 20. Nb3 {[%clk 0:02:16]}  c5 {[%clk 0:02:37]} 21. a3 {[%clk 0:02:13]}  Ndf4 {[%clk 0:02:33]} 22. Nbd2 {[%clk 0:01:53]}  h6 {[%clk 0:02:31]} 23. g3 {[%clk 0:01:43]}  g5 {[%clk 0:02:25]} 24. Qg4 {[%clk 0:01:43]}  Ng6 {[%clk 0:02:24]} 25. h4 {[%clk 0:01:38]}  gxh4 {[%clk 0:02:23]} 26. Nxh4 {[%clk 0:01:38]}  Kh7 {[%clk 0:02:21]} 27. Nxg6 {[%clk 0:01:36]}  Rg8 {[%clk 0:02:21]} 28. Qf5 {[%clk 0:01:31]}  Rxg6 {[%clk 0:02:17]} 29. Qxf7+ {[%clk 0:01:30]}  Ng7 {[%clk 0:02:17]} 30. Nf3 {[%clk 0:01:30]}  Qc6 {[%clk 0:02:11]} 31. Nh4 {[%clk 0:01:30]}  Rg5 {[%clk 0:02:10]} 32. Qxe7 {[%clk 0:01:21]}  Re8 {[%clk 0:02:08]} 33. Qf7 {[%clk 0:01:19]}  Rexe5 {[%clk 0:02:07]} 34. Nf3 {[%clk 0:01:08]}  Rxe1+ {[%clk 0:02:05]} 35. Rxe1 {[%clk 0:01:07]}  Rf5 {[%clk 0:02:05]} 36. Ne5 {[%clk 0:01:01]}  Qd6 {[%clk 0:01:51]} 37. Nc4 {[%clk 0:00:57]}  Qd4 {[%clk 0:01:42]} 0-1


[Site "https://www.chess.com"]